fUSD/lending_fUSD_20240708
["ID","MTS","AMOUNT","RATE_DAILY","PERIOD"]
[331528409,1720449045820,-151.0,0.00021223,2]
[331528410,1720449045830,-500.0,0.00021233,2]
[331528411,1720449045841,-150.0,0.0002132,3]
[331528412,1720449045850,-500.0,0.0002137,2]
[331528413,1720449045860,-5895.09,0.0002137,2]
[331528414,1720449045872,-180.0,0.00021397,2]
[331528415,1720449045886,-250.0,0.00021514,2]
[331528416,1720449045899,-500.25,0.00021529,2]
[331528417,1720449045910,-500.0,0.00021644,2]
[331528418,1720449045920,-796.08,0.00021644,2]
[331528419,1720449045930,-203.92,0.00021644,2]
[331528420,1720449045940,-796.08,0.00021644,2]
[331528421,1720449045950,-202.98935031,0.0002169,7]
[331528422,1720449045961,-13420.27975692,0.00021697,2]
[331528423,1720449045970,-171642.13759121,0.000217,2]
[331528425,1720449045981,-4091.56,0.000217,2]
[331528426,1720449045991,-13750.37,0.000217,2]
[331528427,1720449046001,-4904.09,0.000217,2]
[331528428,1720449046011,-109807.43485037,0.000217,2]
[331528429,1720449046020,-615.0,0.0002189,20]
[331528430,1720449046030,-450.0,0.00021898,2]
[331528431,1720449046040,-18725.12564802,0.000219,2]
[331528432,1720449046050,-716.34,0.00021918,2]
[331528433,1720449046060,-632.18,0.00021918,2]
[331528434,1720449046070,-150.0,0.00021918,2]
[331528435,1720449046079,-200.0,0.00021918,10]
[331528436,1720449046090,-323.17527,0.00021918,2]
[331528437,1720449046100,-89753.08914912,0.0002195,2]
[331528438,1720449046110,-651.79187883,0.00022,2]
[331528439,1720449046121,-3200.0,0.00022,2]
[331528440,1720449046134,-241.41706185,0.00022,2]
[331528441,1720449046147,-1066.33657537,0.00022,2]
[331528442,1720449046156,-33000.0,0.00022,4]
[331528443,1720449046165,-150.0,0.00022,2]
[331528444,1720449046175,-5000.0,0.00022,3]
[331528445,1720449046185,-4506.77295862,0.00022,2]
[331528446,1720449046195,-1900.0,0.00022,10]
[331528447,1720449046204,-739.14468283,0.00022,7]
[331528448,1720449046213,-2000.0,0.00022,2]
[331528449,1720449046223,-1300.0,0.00022,2]
[331528450,1720449046232,-1300.0,0.00022,2]
[331528451,1720449046242,-366.10477922,0.00022015,2]
[331528452,1720449046251,-171.03,0.00022038,2]
[331528453,1720449046261,-500.0,0.00022055,2]
[331528454,1720449046271,-350.0,0.00022062,2]
[331528455,1720449046280,-1183.56516054,0.00022068,2]
[331528456,1720449046289,-339.74000108,0.0002208,2]
[331528457,1720449046299,-226.41935928,0.0002211,2]
[331528458,1720449046308,-21710.68662697,0.00022142,2]
[331528459,1720449046318,-1277.40403744,0.00022142,2]
[331528460,1720449046327,-155.0,0.00022144,2]
[331528461,1720449046336,-650.75053089,0.00022144,2]
[331528462,1720449046346,-6100.0,0.00022144,7]
[331528463,1720449046355,-155.0,0.00022199,2]
[331528464,1720449046364,-156.07633243,0.00022199,2]
[331528465,1720449046374,-978.83417697,0.000222,2]
[331528466,1720449046388,-18130.73859304,0.00022242,2]
[331528467,1720449046397,-2424.0,0.00022286,2]
[331528468,1720449046407,-10969.69839758,0.00022294,2]
[331528469,1720449046416,-1000.0,0.000223,2]
[331528470,1720449046425,-333.3,0.00022347,2]
[331528471,1720449046435,-10969.69839758,0.00022388,2]
[331528472,1720449046443,-1000.0,0.00022459,2]
[331528473,1720449046453,-2280.0,0.00022463,7]
[331528474,1720449046462,-150.0,0.00022495,2]
[331528475,1720449046472,-33399.23475578,0.000225,2]
[331528476,1720449046482,-2900.0,0.000225,15]
[331528477,1720449046491,-173.14,0.00022603,2]
[331528478,1720449046501,-341.84132906,0.0002261,2]
[331528479,1720449046511,-150.0,0.0002271,3]
[331528480,1720449046521,-500.0,0.0002274,2]
[331528481,1720449046530,-500.0,0.0002274,2]
[331528483,1720449046540,-500.0,0.0002274,2]
[331528485,1720449046549,-323.17527,0.0002274,2]
[331528487,1720449046559,-2910.90898788,0.00022787,2]
[331528489,1720449046568,-20020.0,0.000228,2]
[331528490,1720449046578,-1000.0,0.000228,2]
[331528491,1720449046588,-1000.0,0.000228,3]
[331528492,1720449046597,-354.33,0.00022837,2]
[331528493,1720449046607,-500.0,0.00022877,2]
[331528494,1720449046616,-500.0,0.00022877,2]
[331528495,1720449046625,-500.0,0.00022877,2]
[331528496,1720449046640,-1550.0,0.0002288,12]
[331528498,1720449046650,-13750.37,0.000229,2]
[331528500,1720449046659,-4904.09,0.000229,2]
[331528502,1720449046669,-177.44978709,0.000229,2]
[331528504,1720449046679,-800.0,0.00022959,2]
[331528506,1720449046688,-800.0,0.00022959,2]
[331528508,1720449046698,-800.0,0.00022959,2]
[331528510,1720449046707,-800.0,0.00022959,2]
[331528512,1720449046717,-800.0,0.00022959,2]
[331528515,1720449046726,-800.0,0.00022959,2]
[331528516,1720449046736,-800.0,0.00022959,2]
[331528518,1720449046747,-800.0,0.00022959,2]
[331528520,1720449046756,-800.0,0.00022959,2]
[331528522,1720449046766,-800.0,0.00022959,2]
[331528524,1720449046776,-800.0,0.00022959,2]
[331528526,1720449046785,-800.0,0.00022959,2]
[331528528,1720449046795,-800.0,0.00022959,2]
[331528530,1720449046804,-800.0,0.00022959,2]
[331528532,1720449046814,-800.0,0.00022959,2]
[331528534,1720449046823,-800.0,0.00022959,2]
[331528537,1720449046833,-800.0,0.00022959,2]
[331528539,1720449046842,-800.0,0.00022959,2]
[331528541,1720449046852,-800.0,0.00022959,2]
[331528543,1720449046861,-800.0,0.00022959,2]
[331528559,1720449047028,-800.0,0.00022959,2]
[331528560,1720449047038,-800.0,0.00022959,2]
[331528561,1720449047048,-800.0,0.00022959,2]
[331528562,1720449047058,-800.0,0.00022959,2]
[331528563,1720449047067,-800.0,0.00022959,2]
[331528564,1720449047077,-800.0,0.00022959,2]
[331528565,1720449047087,-800.0,0.00022959,2]
[331528566,1720449047096,-800.0,0.00022959,2]
[331528567,1720449047105,-800.0,0.00022959,2]
[331528568,1720449047115,-800.0,0.00022959,2]
[331528569,1720449047124,-15181.62048274,0.00022979,2]
[331528570,1720449047138,-68296.36681565,0.00022988,2]
[331528571,1720449047147,-500.0,0.00023,2]
[331528572,1720449047157,-5008.75124387,0.00023,2]
[331528573,1720449047166,-501.78,0.00023,2]
[331528574,1720449047175,-526.42,0.00023,2]
[331528575,1720449047184,-500.0,0.00023,2]
[331528576,1720449047193,-500.0,0.00023,2]
[331528577,1720449047202,-500.0,0.00023,2]
[331528578,1720449047211,-500.0,0.00023,2]
[331528579,1720449047220,-500.0,0.00023,2]
[331528580,1720449047230,-500.0,0.00023,2]
[331528581,1720449047239,-500.0,0.00023,2]
[331528582,1720449047249,-201.0,0.00023,4]
[331528583,1720449047259,-278888.05398702,0.00023,2]
[331528584,1720449047268,-4091.56,0.00023,2]
[331528585,1720449047278,-150.0,0.00023,2]
[331528586,1720449047287,-2000.0,0.00023,2]
[331528587,1720449047296,-203.39173073,0.00023,2]
[331528588,1720449047306,-263.43967996,0.0002301,2]
[331528589,1720449047315,-150.0,0.00023071,2]
[331528590,1720449047325,-241.96845889,0.00023145,2]
[331528591,1720449047335,-500.0,0.00023151,2]
[331528592,1720449047345,-500.0,0.00023151,2]
[331528593,1720449047355,-500.0,0.00023151,2]
[331528594,1720449047364,-25789.12607938,0.00023161,2]
[331528595,1720449047373,-24021.72218042,0.00023227,2]
[331528596,1720449047389,-550.0,0.00023268,2]
[331528597,1720449047398,-380.0,0.00023288,2]
[331528598,1720449047408,-380.0,0.00023288,2]
[331528599,1720449047417,-380.0,0.00023288,2]
[331528600,1720449047426,-380.0,0.00023288,2]
[331528601,1720449047435,-380.0,0.00023288,2]
[331528602,1720449047444,-380.0,0.00023288,2]
[331528603,1720449047453,-380.0,0.00023288,2]
[331528604,1720449047462,-380.0,0.00023288,2]
[331528605,1720449047471,-388.71,0.00023288,2]
[331528606,1720449047480,-150.0,0.000235,2]
[331528607,1720449047489,-4438.87121239,0.0002354,2]
[331528608,1720449047499,-323.17527,0.00023562,2]
[331528609,1720449047508,-500.0,0.00023562,2]
[331528610,1720449047517,-500.0,0.00023562,2]
[331528611,1720449047527,-500.0,0.00023562,2]
[331528612,1720449047537,-150.0,0.00023648,2]
[331528613,1720449047547,-500.25,0.00023793,2]
[331528614,1720449047556,-200.0,0.0002399,7]
[331528615,1720449047566,-26840.55951384,0.00023997,2]
[331528616,1720449047576,-296.6281861,0.00024,2]
[331528617,1720449047585,-961.10015646,0.00024,2]
[331528618,1720449047595,-344444.15743822,0.00024,3]
[331528619,1720449047605,-536432.6273825,0.00024,15]
[331528620,1720449047614,-383.30279311,0.00024,2]
[331528621,1720449047623,-150.0,0.00024,2]
[331528622,1720449047636,-1099.47835702,0.00024,2]
[331528623,1720449047648,-155.0,0.00024,10]
[331528624,1720449047658,-1800.0,0.00024,25]
[331528625,1720449047667,-241362.93092615,0.00024,15]
[331528626,1720449047676,-1056.899999,0.00024,2]
[331528627,1720449047686,-1350.0,0.00024,2]
[331528628,1720449047695,-3045.03044195,0.0002408,2]
[331528629,1720449047704,-4904.09,0.000241,2]
[331528630,1720449047713,-4999.999999,0.000241,2]
[331528631,1720449047722,-500.0,0.0002411,2]
[331528632,1720449047731,-500.0,0.0002411,2]
[331528633,1720449047740,-211.23,0.0002411,2]
[331528634,1720449047749,-13750.37,0.000242,2]
[331528635,1720449047759,-600.0,0.000242,13]
[331528636,1720449047768,-396.71832285,0.0002421,2]
[331528638,1720449047778,-150.0,0.00024225,2]
[331528640,1720449047787,-1216.12411998,0.0002425,2]
[331528642,1720449047796,-339.74000108,0.00024272,2]
[331528644,1720449047806,-4091.56,0.000243,2]
[331528646,1720449047815,-323.17527,0.00024384,2]
[331528648,1720449047825,-333.27406101,0.0002442,2]
[331528650,1720449047835,-150.0,0.000245,2]
[331528652,1720449047846,-650.0,0.00024638,2]
[331528654,1720449047856,-720.0,0.00024658,2]
[331528656,1720449047865,-632.18,0.00024658,2]
[331528657,1720449047875,-8509.32,0.00024658,4]
[331528660,1720449047893,-243.86,0.00024658,4]
[331528662,1720449047903,-500.0,0.00024795,2]
[331528664,1720449047913,-500.0,0.00024795,2]
[331528666,1720449047922,-1500.0,0.000248,14]
[331528668,1720449047932,-150.0,0.00024802,2]
[331528670,1720449047942,-326.35446088,0.00025,2]
[331528673,1720449047951,-1128.37932045,0.00025,2]
[331528675,1720449047964,-779.43267793,0.00025,2]
[331528677,1720449047973,-3220.35331078,0.00025,2]
[331528679,1720449047983,-6854.79713618,0.00025,2]
[331528680,1720449047992,-500.0,0.00025,4]
[331528681,1720449048002,-2872.58822957,0.00025,2]
[331528682,1720449048011,-166.57627752,0.00025,2]
[331528683,1720449048021,-3288.65757085,0.00025,4]
[331528686,1720449048030,-236.4258472,0.00025,2]
[331528687,1720449048040,-500.0,0.00025,2]
[331528690,1720449048050,-500.0,0.00025,2]
[331528693,1720449048059,-500.0,0.00025,2]
[331528696,1720449048068,-500.0,0.00025,2]
[331528699,1720449048078,-168.23391837,0.00025,2]
[331528702,1720449048088,-21693.35,0.00025,15]
[331528705,1720449048099,-500.0,0.00025,2]
[331528708,1720449048109,-220.86,0.00025,2]
[331528711,1720449048119,-150.0,0.00025,2]
[331528714,1720449048130,-500.0,0.00025,5]
[331528717,1720449048151,-2035.0,0.00025,2]
[331528719,1720449048161,-900.0,0.00025,26]
[331528721,1720449048170,-500.0,0.00025,7]
[331528723,1720449048179,-154.91357566,0.00025,2]
[331528725,1720449048188,-150.0,0.00025,2]
[331528727,1720449048197,-3196.54029958,0.000251,2]
[331528729,1720449048206,-5000.0,0.000251,10]
[331528731,1720449048215,-2084.0,0.000251,2]
[331528733,1720449048224,-1000.0,0.00025205,2]
[331528735,1720449048234,-323.17527,0.00025205,2]
[331528737,1720449048244,-4904.09,0.000253,2]
[331528739,1720449048253,-150.0,0.00025379,2]
[331528741,1720449048263,-13750.37,0.000254,2]
[331528743,1720449048273,-1000.0,0.00025499,2]
[331528745,1720449048283,-150.0,0.000255,2]
[331528747,1720449048292,-151.29699302,0.00025504,2]
[331528749,1720449048302,-4091.56,0.000256,2]
[331528751,1720449048311,-500.0,0.00025616,2]
[331528752,1720449048321,-500.0,0.00025616,2]
[331528754,1720449048330,-1000.0,0.00025741,2]
[331528756,1720449048340,-150.0,0.00025955,2]
[331528758,1720449048350,-25789.12607938,0.00025981,2]
[331528759,1720449048360,-377.70407714,0.0002599,2]
[331528760,1720449048369,-900.0,0.00026,27]
[331528762,1720449048379,-300.0,0.00026,2]
[331528764,1720449048396,-4273.66356158,0.00026,2]
[331528766,1720449048404,-4433.65,0.00026,2]
[331528768,1720449048414,-2939.04221349,0.00026,2]
[331528770,1720449048423,-250.01188129,0.00026,15]
[331528771,1720449048432,-150.0,0.00026,2]
[331528773,1720449048441,-1400.0,0.00026,2]
[331528775,1720449048451,-266.61208564,0.00026008,2]
[331528777,1720449048460,-323.17527,0.00026027,2]
[331528779,1720449048469,-500.25,0.00026057,2]
[331528781,1720449048478,-150.0,0.00026079,2]
[331528783,1720449048487,-24021.72218042,0.00026086,2]
[331528785,1720449048497,-500.0,0.00026164,2]
[331528787,1720449048506,-80606.29,0.00026301,2]
[331528789,1720449048516,-25942.01572034,0.000264,2]
[331528791,1720449048526,-339.74000108,0.00026465,2]
[331528793,1720449048535,-150.0,0.000265,2]
[331528795,1720449048545,-4904.09,0.000265,2]
[331528797,1720449048555,-150.0,0.00026532,2]
[331528799,1720449048564,-500.0,0.00026575,2]
[331528801,1720449048573,-500.0,0.00026575,2]
[331528803,1720449048582,-13750.37,0.000267,2]
[331528805,1720449048591,-8007.67090585,0.00026819,28]
[331528807,1720449048600,-177.44978709,0.000269,2]
[331528809,1720449048609,-600.99978934,0.0002691,10]
[331528810,1720449048619,-395.72774567,0.00027,2]
[331528811,1720449048628,-155.0,0.00027,2]
[331528812,1720449048644,-11075.47349803,0.00027,2]
[331528813,1720449048653,-4091.56,0.00027,2]
[331528814,1720449048662,-150.0,0.00027,2]
[331528815,1720449048671,-1800.0,0.00027,28]
[331528816,1720449048680,-1243.12223936,0.00027,3]
[331528817,1720449048689,-4000.0,0.00027,2]
[331528818,1720449048699,-883.15780805,0.00027,7]
[331528819,1720449048708,-169.93311326,0.00027,2]
[331528820,1720449048717,-155.0,0.00027,2]
[331528821,1720449048726,-52050.29231196,0.00027,14]
[331528822,1720449048735,-155.0,0.00027,2]
[331528823,1720449048744,-227.29458516,0.00027,2]
[331528824,1720449048754,-47334.75617699,0.00027,2]
[331528826,1720449048764,-2000.0,0.00027,2]
[331528829,1720449048774,-3242.050107,0.0002701,2]
[331528832,1720449048783,-150.0,0.00027109,2]
[331528835,1720449048793,-3464.12,0.00027123,2]
[331528837,1720449048802,-369.0,0.00027189,2]
[331528840,1720449048812,-1033.0,0.00027397,2]
[331528842,1720449048821,-632.18,0.00027397,2]
[331528844,1720449048831,-34117.85,0.00027397,2]
[331528846,1720449048840,-481.0,0.00027397,13]
[331528848,1720449048849,-7695.25,0.00027397,10]
[331528850,1720449048859,-6412.71,0.00027397,10]
[331528852,1720449048871,-3371.39541321,0.000274,2]
[331528853,1720449048884,-189.96048203,0.000275,2]
[331528856,1720449048899,-499.999999,0.000275,2]
[331528858,1720449048908,-187.8,0.00027671,2]
[331528859,1720449048919,-500.0,0.00027671,2]
[331528861,1720449048928,-150.0,0.00027686,2]
[331528863,1720449048938,-4904.09,0.000277,2]
[331528864,1720449048947,-796.08,0.00027714,2]
[331528865,1720449048960,-203.92,0.00027714,2]
[331528866,1720449048970,-796.08,0.00027714,2]
[331528867,1720449048979,-13750.37,0.000279,2]
[331528868,1720449048989,-621.17714689,0.00028,2]
[331528869,1720449048998,-3350.96536842,0.00028,2]
[331528870,1720449049008,-160.0,0.00028,14]
[331528871,1720449049017,-150.0,0.00028,2]
[331528872,1720449049027,-222.78499003,0.00028,2]
[331528873,1720449049036,-204.86938771,0.00028,2]
[331528874,1720449049046,-160.0,0.00028,2]
[331528875,1720449049056,-496.6961797,0.00028,2]
[331528876,1720449049066,-1450.0,0.00028,2]
[331528877,1720449049075,-1800.0,0.00028,29]
[331528878,1720449049084,-2091.83239104,0.00028,5]
[331528879,1720449049094,-150.0,0.00028263,2]
[331528880,1720449049103,-4091.56,0.000283,2]
[331528881,1720449049112,-500.25,0.00028321,2]
[331528882,1720449049122,-453.0,0.00028431,2]
[331528883,1720449049132,-173.14,0.00028493,2]
[331528884,1720449049147,-339.74000108,0.00028658,2]
[331528885,1720449049157,-25789.12607938,0.00028801,2]
[331528886,1720449049166,-2496.53961982,0.00028808,2]
[331528887,1720449049175,-28639.36294384,0.0002881,2]
[331528888,1720449049184,-150.0,0.00028839,2]
[331528889,1720449049194,-4904.09,0.000289,2]
[331528890,1720449049203,-500.0,0.00028904,2]
[331528891,1720449049213,-24021.72218042,0.00028945,2]
[331528892,1720449049222,-26840.55951384,0.00028967,2]
[331528893,1720449049231,-853324.42831665,0.0002897,2]
[331528894,1720449049242,-54299.55051109,0.00029,2]
[331528895,1720449049251,-14426.59856579,0.00029,2]
[331528896,1720449049260,-653.43793052,0.00029,2]
[331528897,1720449049269,-250.0603346,0.00029,2]
[331528898,1720449049279,-150.0,0.00029,2]
[331528899,1720449049288,-5000.0,0.00029,2]
[331528900,1720449049298,-3599.99999908,0.00029,30]
[331528901,1720449049307,-13750.37,0.000291,2]
[331528902,1720449049316,-10567.46107571,0.000294,2]
[331528903,1720449049326,-150.0,0.00029416,2]
[331528904,1720449049335,-1000.0,0.000295,25]
[331528905,1720449049345,-4091.56,0.000296,2]
[331528906,1720449049354,-150.0,0.0002969,10]
[331528907,1720449049364,-558.0,0.00029731,2]
[331528908,1720449049374,-361.55531362,0.000298,2]
[331528909,1720449049389,-3883.0,0.000298,2]
[331528910,1720449049398,-223.98593402,0.0002999,2]
[331528911,1720449049407,-1500.0,0.0002999,4]
[331528912,1720449049416,-150.0,0.00029993,2]
[331528913,1720449049425,-13420.27975692,0.00029997,2]
[331528914,1720449049435,-155.54339453,0.0003,3]
[331528915,1720449049444,-191.35266388,0.0003,4]
[331528916,1720449049453,-201.6496912,0.0003,4]
[331528917,1720449049462,-500.0,0.0003,4]
[331528918,1720449049472,-1714.16788891,0.0003,2]
[331528919,1720449049481,-15236.60115983,0.0003,2]
[331528920,1720449049491,-3906.43351919,0.0003,2]
[331528921,1720449049500,-300.0,0.0003,2]
[331528922,1720449049510,-11822.80532539,0.0003,2]
[331528923,1720449049519,-10000.0,0.0003,2]
[331528924,1720449049529,-182.31767215,0.0003,4]
[331528925,1720449049539,-350.0,0.0003,15]
[331528926,1720449049548,-3005.45022456,0.0003,3]
[331528927,1720449049558,-155.0,0.0003,16]
[331528928,1720449049567,-160.0,0.0003,2]
[331528929,1720449049577,-500.0,0.0003,10]
[331528930,1720449049586,-500.0,0.0003,10]
[331528931,1720449049596,-500.0,0.0003,10]
[331528932,1720449049605,-500.0,0.0003,10]
[331528933,1720449049615,-500.0,0.0003,10]
[331528934,1720449049626,-1000.0,0.0003,25]
[331528935,1720449049640,-1000.0,0.0003,10]
[331528936,1720449049650,-150.0,0.0003,2]
[331528937,1720449049659,-400.52790758,0.0003,2]
[331528938,1720449049668,-8400.0,0.0003,5]
[331528939,1720449049677,-513.07563497,0.0003,10]
[331528940,1720449049686,-3000.0,0.0003,2]
[331528941,1720449049695,-492.48377937,0.0003,2]
[331528942,1720449049704,-232.17,0.0003,20]
[331528943,1720449049714,-1730.7316029,0.0003,4]
[331528944,1720449049723,-689.64428017,0.0003,4]
[331528945,1720449049732,-5000.0,0.0003,7]
[331528946,1720449049741,-10598.95529767,0.0003,2]
[331528947,1720449049751,-300.0,0.0003,7]
[331528948,1720449049760,-227.70922832,0.0003,2]
[331528949,1720449049769,-1119.97601901,0.0003,7]
[331528950,1720449049779,-1500.0,0.0003,2]
[331528951,1720449049788,-316.55357782,0.0003,2]
[331528952,1720449049797,-207.0,0.0003,2]
[331528953,1720449049807,-3600.0,0.0003,31]
[331528954,1720449049816,-315.580495,0.0003,10]
[331528955,1720449049826,-383.71042667,0.0003,30]
[331528956,1720449049835,-5507.10013973,0.0003,2]
[331528957,1720449049845,-632.18,0.00030137,2]
[331528958,1720449049854,-500.0,0.00030274,2]
[331528959,1720449049865,-500.0,0.00030274,2]
[331528960,1720449049875,-925.27062,0.000303,2]
[331528961,1720449049886,-1000.0,0.00030303,2]
[331528962,1720449049896,-925.27063,0.0003033,2]
[331528963,1720449049906,-1117.62213298,0.00030533,7]
[331528964,1720449049917,-150.0,0.0003057,2]
[331528965,1720449049927,-500.25,0.00030585,2]
[331528966,1720449049936,-553.94457391,0.00030589,7]
[331528967,1720449049946,-1614.82337835,0.00030712,7]
[331528968,1720449049959,-151.0,0.00030749,2]
[331528969,1720449049968,-155.21263894,0.0003077,4]
[331528970,1720449049979,-925.27063,0.000308,2]
[331528971,1720449049989,-339.74000108,0.0003085,2]
[331528972,1720449049998,-613.73039099,0.0003089,20]
[331528973,1720449050008,-177.44978709,0.000309,2]
[331528974,1720449050017,-925.27063,0.0003095,2]
[331528975,1720449050027,-1000.0,0.00031,2]
[331528976,1720449050036,-1000.0,0.00031,4]
[331528977,1720449050045,-310.0,0.00031,4]
[331528978,1720449050056,-319.44979555,0.00031,5]
[331528979,1720449050066,-150.0,0.00031,2]
[331528980,1720449050076,-4904.09,0.00031,2]
[331528981,1720449050086,-16024.1244408,0.00031,5]
[331528982,1720449050095,-1814.0,0.00031,2]
[331528983,1720449050105,-1800.0,0.00031,30]
[331528984,1720449050115,-882.00382439,0.00031072,7]
[331528985,1720449050125,-686.0,0.0003109,3]
[331528986,1720449050135,-150.05450298,0.00031104,7]
[331528987,1720449050145,-151.29699302,0.00031112,2]
[331528988,1720449050154,-150.0,0.00031147,2]
[331528989,1720449050164,-155.11068247,0.0003115,7]
[331528990,1720449050173,-9387.48970814,0.00031196,2]
[331528991,1720449050184,-9387.48970813,0.00031196,2]
[331528992,1720449050193,-9387.48970813,0.00031196,2]
[331528993,1720449050203,-9380.7365601,0.00031204,2]
[331528994,1720449050213,-2000.0,0.000313,2]
[331528995,1720449050223,-18408.48863367,0.0003143,4]
[331528996,1720449050232,-10000.0,0.00031534,5]
[331528997,1720449050242,-25789.12607938,0.0003162,15]
[331528998,1720449050251,-152.68542364,0.00031642,7]
[331528999,1720449050261,-150.0,0.00031723,2]
[331529000,1720449050271,-500.0,0.00031781,2]
[331529001,1720449050281,-492.4297058,0.000318,2]
[331529002,1720449050291,-2000.0,0.000318,2]
[331529003,1720449050300,-24021.72218042,0.00031805,15]
[331529004,1720449050310,-1458.9,0.0003182,30]
[331529005,1720449050320,-150.0,0.0003183,10]
[331529006,1720449050329,-1117.62213298,0.00031837,7]
[331529007,1720449050339,-882.00382439,0.00031857,7]
[331529008,1720449050349,-550.0,0.00032,2]
[331529009,1720449050359,-4091.56,0.00032,2]
[331529010,1720449050369,-13750.37,0.00032,2]
[331529011,1720449050379,-150.0,0.00032,2]
[331529012,1720449050391,-1550.0,0.00032,2]
[331529013,1720449050400,-1800.0,0.00032,33]
[331529014,1720449050410,-553.94457391,0.00032005,7]
[331529015,1720449050419,-155.26671152,0.00032088,7]
[331529016,1720449050428,-999.999999,0.000321,2]
[331529017,1720449050439,-26148.55,0.00032146,10]
[331529018,1720449050449,-882.00382439,0.00032169,7]
[331529019,1720449050459,-882.00382439,0.00032276,7]
[331529020,1720449050469,-150.0,0.000323,15]
[331529021,1720449050479,-1000.0,0.000323,15]
[331529022,1720449050489,-150.0,0.000323,2]
[331529023,1720449050498,-553.94457391,0.00032308,7]
[331529024,1720449050514,-180.0,0.00032512,3]
[331529025,1720449050524,-1117.62213298,0.00032522,7]
[331529026,1720449050534,-250.000001,0.0003256,7]
[331529027,1720449050543,-300.0,0.000326,15]
[331529028,1720449050552,-882.00382439,0.00032612,7]
[331529029,1720449050562,-1614.82337835,0.00032642,7]
[331529030,1720449050572,-3553.91892248,0.000328,2]
[331529031,1720449050582,-250.80996257,0.000328,7]
[331529032,1720449050592,-1458.85205145,0.0003281,2]
[331529033,1720449050601,-633.36777068,0.00032837,5]
[331529034,1720449050610,-500.25,0.00032849,2]
[331529035,1720449050620,-1614.82337835,0.00032852,7]
[331529036,1720449050629,-553.94457391,0.00032855,7]
[331529037,1720449050641,-323.6,0.00032877,2]
[331529038,1720449050650,-632.18,0.00032877,2]
[331529039,1720449050659,-56525.15,0.00032877,2]
[331529040,1720449050669,-51064.28,0.00032877,2]
[331529041,1720449050679,-500.0,0.00032877,13]
[331529042,1720449050688,-500.0,0.00032877,13]
[331529043,1720449050886,-346.0,0.00032877,13]
[331529044,1720449050896,-800.0,0.00032877,120]
[331529045,1720449050905,-150.0,0.00032877,2]
[331529046,1720449050915,-500.0,0.000329,15]
[331529047,1720449050925,-24562.53035474,0.00033,2]
[331529048,1720449050934,-150.0,0.00033,2]
[331529049,1720449050943,-9813.24666193,0.00033,2]
[331529050,1720449050954,-6000.0,0.00033,3]
[331529051,1720449050964,-655.256263,0.00033,14]
[331529052,1720449050975,-207.0,0.00033,2]
[331529053,1720449050984,-1117.62213298,0.00033031,7]
[331529054,1720449050994,-339.74000108,0.00033043,2]
[331529055,1720449051004,-152.0,0.00033108,3]
[331529056,1720449051013,-716.34,0.00033151,120]
[331529057,1720449051023,-150.0,0.00033273,2]
[331529058,1720449051032,-164.97,0.00033273,2]
[331529059,1720449051042,-500.0,0.00033425,2]
[331529060,1720449051053,-882.00382439,0.00033472,7]
[331529061,1720449051062,-300.36,0.00033494,2]